bitfinex/quotes_SOLUSD_20250612
["timestamp","ask_amount","ask_price","bid_price","bid_amount"]
[1749691446230,6.2407147,160.24,160.2,5.62]
[1749691446525,13.59296863,160.22,160.2,5.62]
[1749691449531,13.59296863,160.23,160.2,5.62]
[1749691450732,13.59296863,160.24,160.2,5.62]
[1749691451236,7.78830824,160.27,160.2,5.62]
[1749691451436,13.59296863,160.27,160.22,13.59296863]
[1749691451639,19.98546863,160.29,160.24,13.59296863]
[1749691451812,13.59296863,160.26,160.21,13.59296863]
[1749691452012,13.59296863,160.23,160.17,5.58]
[1749691452218,13.59296863,160.23,160.18,13.59296863]
[1749691452435,39.59296863,160.24,160.19,13.59296863]
[1749691454566,13.59296863,160.23,160.17,5.58]
[1749691454768,13.59296863,160.23,160.18,13.59296863]
[1749691454924,13.59296863,160.22,160.17,19.17296863]
[1749691455452,26.0,160.24,160.17,19.17296863]
[1749691455627,13.59296863,160.22,160.17,19.17296863]
[1749691457524,6.24107042,160.23,160.17,5.58]
[1749691457733,13.59296863,160.21,160.17,5.58]
[1749691458130,13.59296863,160.22,160.17,19.17296863]
[1749691459022,13.59296863,160.21,160.17,5.58]
[1749691460534,13.59296863,160.2,160.17,5.58]
[1749691461166,39.59296863,160.21,160.17,5.58]
[1749691461731,13.59296863,160.22,160.17,19.17296863]
[1749691461974,1.5162,160.26,160.19,13.59296863]
[1749691461975,13.59296863,160.24,160.19,13.59296863]
[1749691462675,13.59296863,160.24,160.17,5.58]
[1749691462971,13.59296863,160.24,160.19,13.59296863]
[1749691463168,13.59296863,160.23,160.18,13.59296863]
[1749691463370,13.59296863,160.23,160.17,5.58]
[1749691463558,13.59296863,160.21,160.17,19.17296863]
[1749691463866,13.59296863,160.22,160.17,19.17296863]
[1749691464060,13.59296863,160.22,160.18,13.59296863]
[1749691464854,13.59296863,160.22,160.17,19.17296863]
[1749691465333,13.59296863,160.22,160.17,5.58]
[1749691465654,13.59296863,160.22,160.17,19.17296863]
[1749691466160,6.24073198,160.24,160.17,19.17296863]
[1749691466385,13.59296863,160.22,160.17,19.17296863]
[1749691466660,13.59296863,160.21,160.17,5.58]
[1749691466867,13.59296863,160.21,160.17,19.17296863]
[1749691469865,13.59296863,160.22,160.17,19.17296863]
[1749691470239,6.24076466,160.24,160.17,19.17296863]
[1749691470438,13.59296863,160.22,160.17,19.17296863]
[1749691471342,13.59296863,160.23,160.18,13.59296863]
[1749691472163,13.59296863,160.22,160.17,19.17296863]
[1749691473366,13.59296863,160.21,160.17,5.58]
[1749691475061,13.59296863,160.24,160.17,5.58]
[1749691475262,13.59296863,160.21,160.17,5.58]
[1749691476454,39.59296863,160.22,160.17,19.17296863]
[1749691476638,13.59296863,160.22,160.17,19.17296863]
[1749691477058,13.59296863,160.24,160.19,13.59296863]
[1749691477868,13.59296863,160.25,160.2,13.59296863]
[1749691478072,13.59296863,160.25,160.17,5.58]
[1749691478254,13.59296863,160.24,160.18,13.59296863]
[1749691478955,13.59296863,160.23,160.18,39.59296863]
[1749691479157,7.75611729,160.26,160.18,39.59296863]
[1749691479158,13.59296863,160.25,160.19,13.59296863]
[1749691479548,13.59296863,160.25,160.2,13.59296863]
[1749691481373,13.59296863,160.24,160.19,13.59296863]
[1749691481676,13.59296863,160.24,160.19,39.59296863]
[1749691481970,13.59296863,160.23,160.19,26.0]
[1749691482158,13.59296863,160.22,160.21,26.0]
[1749691482566,13.59296863,160.23,160.21,26.0]
[1749691484653,13.59296863,160.22,160.21,26.0]
[1749691484859,13.59296863,160.22,160.2,26.0]
[1749691485062,13.59296863,160.21,160.2,26.0]
[1749691485563,6.2402496,160.25,160.2,26.0]
[1749691485799,13.59296863,160.22,160.2,26.0]
[1749691487881,13.59296863,160.23,160.2,26.0]
[1749691488678,13.59296863,160.23,160.17,19.17296863]
[1749691488876,13.59296863,160.23,160.18,13.59296863]
[1749691489054,13.59296863,160.24,160.19,13.59296863]
[1749691489261,30.07962705,160.3,160.23,13.59296863]
[1749691489262,6.3925,160.29,160.23,13.59296863]
[1749691489488,19.98546863,160.29,160.24,13.59296863]
[1749691489690,7.77755002,160.3,160.26,13.59296863]
[1749691489691,1.539,160.3,160.26,13.59296863]
[1749691489900,13.59296863,160.31,160.26,13.59296863]
[1749691490767,13.59296863,160.31,160.27,13.59296863]
[1749691491786,12.50455764,160.33,160.27,13.59296863]
[1749691491972,13.59296863,160.31,160.26,13.59296863]
[1749691492191,13.59296863,160.3,160.25,39.59296863]
[1749691492373,13.59296863,160.28,160.25,26.0]
[1749691492697,13.59296863,160.27,160.23,26.0]
[1749691492876,13.59296863,160.27,160.23,39.59296863]
[1749691493063,13.59296863,160.28,160.23,39.59296863]
[1749691496677,19.83207223,160.28,160.23,39.59296863]
[1749691496892,13.59296863,160.27,160.22,13.59296863]
[1749691497099,13.59296863,160.26,160.23,26.0]
[1749691497870,13.59296863,160.26,160.22,26.0]
[1749691499504,13.59296863,160.27,160.22,39.59296863]
[1749691501711,13.59296863,160.28,160.23,13.59296863]
[1749691501913,13.59296863,160.31,160.26,13.59296863]
[1749691502221,13.59296863,160.32,160.27,39.59296863]
[1749691504931,1.6135,160.34,160.27,26.0]
[1749691505234,13.59296863,160.34,160.29,13.59296863]
[1749691505439,13.59296863,160.33,160.3,26.0]
[1749691505819,13.59296863,160.33,160.28,13.59296863]
[1749691506140,13.59296863,160.33,160.29,13.59296863]
[1749691507333,13.59296863,160.34,160.29,13.59296863]
[1749691507836,13.59296863,160.35,160.3,13.59296863]
[1749691508043,13.59296863,160.37,160.32,13.59296863]
[1749691508336,13.59296863,160.38,160.33,13.59296863]
[1749691509439,19.82820745,160.38,160.33,13.59296863]
[1749691510138,13.59296863,160.38,160.33,13.59296863]
[1749691510842,6.0743,160.41,160.36,13.59296863]
[1749691511052,13.59296863,160.41,160.36,13.59296863]
[1749691512632,13.59296863,160.39,160.33,18.64964886]
[1749691512950,13.59296863,160.37,160.32,13.59296863]
[1749691513450,13.59296863,160.38,160.33,13.59296863]
[1749691514545,13.59296863,160.41,160.36,13.59296863]
[1749691514932,27.5539,160.42,160.37,13.59296863]
[1749691515139,41.14686863,160.42,160.37,13.59296863]
[1749691515826,13.59296863,160.41,160.37,13.59296863]
[1749691516026,13.59296863,160.4,160.36,13.59296863]
[1749691517028,13.59296863,160.41,160.36,13.59296863]
[1749691517345,13.59296863,160.41,160.35,5.56]
[1749691517346,41.14686863,160.42,160.37,13.59296863]
[1749691517652,15.11786863,160.45,160.4,13.59296863]
[1749691519332,13.59296863,160.44,160.39,13.59296863]
[1749691520931,15.11786863,160.45,160.4,13.59296863]
[1749691523442,15.11786863,160.45,160.36,27.6359]
[1749691523443,13.59296863,160.44,160.39,13.59296863]
[1749691526863,6.23206464,160.47,160.4,39.59296863]
[1749691527039,13.59296863,160.46,160.41,13.59296863]
[1749691528045,13.59296863,160.47,160.42,13.59296863]
[1749691528247,13.59296863,160.48,160.43,13.59296863]
[1749691529434,14.27454612,160.49,160.43,13.59296863]
[1749691529636,13.59296863,160.48,160.43,13.59296863]
[1749691530037,13.59296863,160.47,160.42,39.59296863]
[1749691530857,13.59296863,160.44,160.39,13.59296863]
[1749691531059,13.59296863,160.44,160.39,39.59296863]
[1749691532278,13.59296863,160.43,160.36,1.6359]
[1749691532448,6.23300694,160.44,160.37,13.59296863]
[1749691532449,13.59296863,160.42,160.37,13.59296863]
[1749691532650,13.59296863,160.41,160.37,13.59296863]
[1749691533063,13.59296863,160.41,160.36,13.59296863]
[1749691533263,13.59296863,160.4,160.35,19.15296863]
[1749691533467,13.59296863,160.4,160.36,13.59296863]
[1749691534672,13.59296863,160.41,160.36,13.59296863]
[1749691535475,32.23335407,160.43,160.37,13.59296863]
[1749691535674,13.59296863,160.47,160.42,13.59296863]
[1749691535979,39.59296863,160.47,160.42,13.59296863]
[1749691536870,39.59296863,160.47,160.41,13.59296863]
[1749691536871,13.59296863,160.46,160.41,13.59296863]
[1749691537280,13.59296863,160.46,160.38,0.28432314]
[1749691537454,13.59296863,160.46,160.41,13.59296863]
[1749691539482,26.0,160.47,160.43,13.59296863]
[1749691539779,26.0,160.47,160.42,13.59296863]
[1749691539780,39.59296863,160.47,160.42,13.59296863]
[1749691539976,26.0,160.47,160.42,13.59296863]
[1749691540165,39.59296863,160.47,160.42,13.59296863]
[1749691542369,39.59296863,160.47,160.39,1.5165]
[1749691542370,13.59296863,160.46,160.41,13.59296863]
[1749691544468,13.59296863,160.46,160.39,1.5165]
[1749691544469,13.59296863,160.44,160.39,13.59296863]
[1749691544796,13.59296863,160.44,160.39,39.59296863]
[1749691545104,13.59296863,160.44,160.36,112.481472]
[1749691545105,13.59296863,160.4,160.36,13.59296863]
[1749691545265,13.59296863,160.4,160.35,45.15296863]
[1749691547672,1.6479,160.43,160.36,13.59296863]
[1749691547872,13.59296863,160.4,160.36,13.59296863]
[1749691549080,1.6479,160.43,160.37,13.59296863]
[1749691549279,13.59296863,160.44,160.39,13.59296863]
[1749691549479,13.59296863,160.44,160.39,39.59296863]
[1749691549993,13.59296863,160.43,160.39,26.0]
[1749691552888,13.59296863,160.42,160.39,26.0]
[1749691553088,20.454272,160.47,160.36,26.0]
[1749691553089,13.59296863,160.4,160.36,26.0]
[1749691553692,13.59296863,160.4,160.35,19.15296863]
[1749691553896,13.59296863,160.4,160.36,26.0]
[1749691555788,13.59296863,160.41,160.36,39.59296863]
[1749691556997,13.59296863,160.41,160.36,26.0]
[1749691557200,13.59296863,160.41,160.36,39.59296863]
[1749691558079,13.59296863,160.44,160.39,13.59296863]
[1749691558397,15.11326863,160.47,160.4,26.0]
[1749691558574,1.5203,160.47,160.43,13.59296863]
[1749691558778,15.11326863,160.47,160.4,26.0]
[1749691558992,15.11326863,160.47,160.43,13.59296863]
[1749691559297,15.11326863,160.47,160.42,13.59296863]
[1749691559673,27.5203,160.47,160.42,13.59296863]
[1749691559870,41.11326863,160.47,160.42,13.59296863]
[1749691560185,13.59296863,160.46,160.41,13.59296863]
[1749691560776,27.5203,160.47,160.41,13.59296863]
[1749691560992,13.59296863,160.46,160.41,13.59296863]
[1749691561396,13.59296863,160.45,160.4,13.59296863]
[1749691561695,13.59296863,160.44,160.39,13.59296863]
[1749691562705,26.0,160.41,160.4,13.59296863]
[1749691563092,13.59296863,160.41,160.36,13.59296863]
[1749691563277,13.59296863,160.41,160.35,5.70216157]
[1749691563278,39.59296863,160.4,160.35,19.2951302]
[1749691563476,39.59296863,160.4,160.35,19.15296863]
[1749691563791,39.59296863,160.4,160.36,13.59296863]
[1749691564505,39.59296863,160.37,160.29,24.30964886]
[1749691564702,26.0,160.37,160.36,13.59296863]
[1749691565072,26.0,160.37,160.32,25.78]
[1749691565306,26.0,160.37,160.33,13.59296863]
[1749691566203,39.59296863,160.37,160.32,13.59296863]
[1749691566505,39.59296863,160.37,160.33,13.59296863]
[1749691566506,26.0,160.37,160.33,13.59296863]
[1749691566877,26.0,160.35,160.34,13.59296863]
[1749691567098,26.0,160.37,160.34,13.59296863]
[1749691567303,1.6509,160.44,160.37,19.07613357]
[1749691567519,19.82096863,160.46,160.41,13.59296863]
[1749691567676,26.0,160.44,160.42,13.59296863]
[1749691567880,13.59296863,160.44,160.39,13.59296863]
[1749691568180,13.59296863,160.43,160.38,19.25296863]
[1749691568606,39.59296863,160.44,160.39,13.59296863]
[1749691568803,26.0,160.41,160.38,19.25296863]
[1749691569585,39.59296863,160.44,160.39,13.59296863]
[1749691569904,39.59296863,160.44,160.38,5.66]
[1749691569905,26.0,160.42,160.4,13.59296863]
[1749691570611,26.0,160.4,160.38,19.25296863]
[1749691570995,13.59296863,160.43,160.39,13.59296863]
[1749691571310,13.59296863,160.43,160.38,19.25296863]
[1749691573690,6.23317387,160.44,160.41,13.59296863]
[1749691574305,6.23317387,160.44,160.38,5.66]
[1749691574504,6.23317387,160.44,160.4,13.59296863]
[1749691574903,19.82505139,160.46,160.41,13.59296863]
[1749691575710,13.59296863,160.45,160.4,13.59296863]
[1749691576302,19.82505139,160.46,160.41,13.59296863]
[1749691576504,26.0,160.47,160.42,13.59296863]
[1749691576505,45.82473955,160.47,160.42,13.59296863]
[1749691576714,32.23177092,160.47,160.43,13.59296863]
[1749691577020,26.0,160.47,160.43,13.59296863]
[1749691577213,26.0,160.47,160.44,13.59296863]
[1749691577395,7.85250099,160.48,160.44,13.59296863]
[1749691577596,21.44546962,160.48,160.43,13.59296863]
[1749691580317,21.44546962,160.48,160.38,5.66]
[1749691580502,13.59296863,160.45,160.4,13.59296863]
[1749691580905,13.59296863,160.44,160.39,13.59296863]
[1749691581723,6.23324814,160.43,160.39,13.59296863]
[1749691582221,33.85247709,160.48,160.42,13.59296863]
[1749691582423,33.85247709,160.48,160.44,13.59296863]
[1749691582622,47.44544572,160.48,160.43,13.59296863]
[1749691583703,33.85247709,160.48,160.44,13.59296863]
[1749691587415,27.6211,160.48,160.45,13.59296863]
[1749691588414,27.6211,160.48,160.4,13.59296863]
[1749691588827,27.6211,160.48,160.44,13.59296863]
[1749691590700,12.66082447,160.5,160.46,13.59296863]
[1749691592822,26.0,160.47,160.46,13.59296863]
[1749691593931,26.0,160.46,160.41,0.14216157]
[1749691594108,26.0,160.46,160.45,13.59296863]
[1749691594308,26.0,160.45,160.41,13.59296863]
[1749691594508,26.0,160.44,160.41,13.59296863]
[1749691594723,26.0,160.44,160.42,13.59296863]
[1749691596342,26.0,160.44,160.39,5.66]
[1749691596521,26.0,160.44,160.42,13.59296863]
[1749691599738,26.0,160.44,160.41,13.59296863]
[1749691600043,26.0,160.43,160.41,13.59296863]
[1749691600416,26.0,160.43,160.4,13.59296863]
[1749691600739,26.0,160.41,160.39,19.25296863]
[1749691601540,26.0,160.42,160.4,13.59296863]
[1749691605523,26.0,160.43,160.41,13.59296863]
[1749691605740,26.0,160.42,160.4,13.59296863]
[1749691608818,26.0,160.43,160.41,13.59296863]
[1749691610535,26.0,160.43,160.37,5.88432314]
[1749691610536,26.0,160.46,160.42,13.59296863]
[1749691610747,26.0,160.45,160.43,13.59296863]
[1749691611355,13.59296863,160.45,160.4,13.59296863]
[1749691611844,26.0,160.41,160.4,13.59296863]
[1749691612156,39.59296863,160.45,160.4,13.59296863]
[1749691612448,26.0,160.41,160.39,13.59296863]
[1749691612934,26.0,160.41,160.37,5.6]
[1749691613126,26.0,160.41,160.39,13.59296863]
[1749691618550,26.0,160.41,160.38,13.59296863]
[1749691621935,26.0,160.4,160.38,13.59296863]
[1749691624248,26.0,160.39,160.38,13.59296863]
[1749691624453,26.0,160.39,160.37,5.6]
[1749691624454,26.0,160.38,160.37,5.6]
[1749691625048,26.0,160.38,160.37,19.19296863]
[1749691625367,26.0,160.38,160.37,19.3351302]
[1749691625531,13.59296863,160.48,160.38,19.07613357]
[1749691625737,168.92355754,160.5,160.45,13.59296863]
[1749691625960,6.22936522,160.53,160.47,13.59296863]
[1749691626131,19.82233385,160.53,160.48,13.59296863]
[1749691626552,26.0,160.49,160.48,13.59296863]
[1749691627131,26.0,160.49,160.41,44.71613357]
[1749691627132,26.0,160.49,160.47,13.59296863]
[1749691627729,6.2294978,160.53,160.48,13.59296863]
[1749691627928,18.83984214,160.55,160.5,13.59296863]
[1749691628164,26.0,160.51,160.5,13.59296863]
[1749691628336,26.0,160.51,160.49,13.59296863]
[1749691628536,26.0,160.5,160.48,13.59296863]
[1749691629348,26.0,160.49,160.48,13.59296863]
[1749691629856,26.0,160.5,160.48,13.59296863]
[1749691630632,26.0,160.49,160.47,13.59296863]
[1749691631668,26.0,160.5,160.48,13.59296863]
[1749691634164,26.0,160.49,160.47,13.59296863]
[1749691635047,26.0,160.49,160.48,13.59296863]
[1749691635936,26.0,160.5,160.48,13.59296863]
[1749691636256,26.0,160.5,160.49,13.59296863]
[1749691637253,26.0,160.5,160.48,13.59296863]
[1749691640440,26.0,160.49,160.46,5.56]
[1749691640635,26.0,160.49,160.47,13.59296863]
[1749691642042,26.0,160.5,160.48,13.59296863]
[1749691643678,26.0,160.51,160.49,13.59296863]
[1749691643862,26.0,160.5,160.48,13.59296863]
[1749691647583,26.0,160.51,160.48,13.59296863]
[1749691647958,26.0,160.5,160.48,13.59296863]
[1749691650382,13.59296863,160.51,160.47,13.59296863]
[1749691651081,26.0,160.49,160.47,13.59296863]
[1749691651464,26.0,160.49,160.46,5.56]
[1749691651657,26.0,160.49,160.46,19.15296863]
[1749691652778,26.0,160.49,160.47,13.59296863]
[1749691653678,26.0,160.5,160.48,13.59296863]
[1749691658887,26.0,160.5,160.47,13.7351302]
[1749691659790,26.0,160.5,160.48,13.59296863]
[1749691660163,26.0,160.51,160.48,13.59296863]
[1749691660885,13.59296863,160.53,160.48,13.59296863]
[1749691661088,26.0,160.5,160.48,13.59296863]
[1749691661392,39.59296863,160.52,160.47,13.7351302]
[1749691661887,39.59296863,160.52,160.46,19.15296863]
[1749691662086,26.0,160.5,160.46,5.56]
[1749691663800,26.0,160.47,160.46,5.56]
[1749691663979,13.59296863,160.48,160.46,5.56]
[1749691664971,39.59296863,160.48,160.46,5.56]
[1749691665171,13.59296863,160.47,160.46,5.56]
[1749691665975,19.82466302,160.47,160.46,5.56]
[1749691666201,19.82466302,160.47,160.39,5.56]
[1749691666377,26.0,160.41,160.39,19.15296863]
[1749691667280,26.0,160.4,160.39,5.56]
[1749691667803,13.59296863,160.41,160.39,5.56]
[1749691669735,13.59296863,160.4,160.39,5.56]
[1749691670083,26.0,160.41,160.39,5.56]
[1749691670279,39.59296863,160.41,160.39,5.56]
[1749691670795,13.59296863,160.4,160.39,5.56]
[1749691674503,26.0,160.37,160.32,19.15296863]
[1749691674806,26.0,160.37,160.33,13.59296863]
[1749691675381,13.59296863,160.36,160.32,19.15296863]
[1749691675774,39.59296863,160.37,160.32,19.15296863]
[1749691676506,26.0,160.33,160.32,5.56]
[1749691677698,12.79442482,160.38,160.32,5.56]
[1749691677699,13.59296863,160.34,160.32,5.56]
[1749691681122,13.59296863,160.33,160.32,5.56]
[1749691681331,13.59296863,160.33,160.23,5.09723213]
[1749691681332,26.0,160.31,160.25,19.15296863]
[1749691681503,26.0,160.26,160.22,5.56]
[1749691681705,26.0,160.24,160.22,5.56]
[1749691681909,13.59296863,160.23,160.22,5.56]
[1749691682931,26.0,160.2,160.16,13.59296863]
[1749691683094,39.59296863,160.2,160.16,13.59296863]
[1749691683298,39.59296863,160.2,160.15,5.56]
[1749691683496,21.51586863,160.24,160.17,13.59296863]
[1749691683497,7.9229,160.24,160.17,13.59296863]
[1749691683705,19.07613357,160.28,160.15,5.56]
[1749691683706,39.59296863,160.25,160.21,13.59296863]
[1749691684024,39.59296863,160.25,160.17,0.42648471]
[1749691684025,26.0,160.25,160.17,0.42648471]
[1749691684208,39.59296863,160.25,160.2,13.59296863]
[1749691684595,26.0,160.19,160.11,3.05498539]
[1749691684910,26.0,160.25,160.13,13.59296863]
[1749691684911,26.0,160.18,160.13,13.59296863]
[1749691685120,26.0,160.18,160.14,13.59296863]
[1749691685312,26.0,160.21,160.14,13.59296863]
[1749691685514,26.0,160.16,160.13,0.14216157]
[1749691685823,26.0,160.16,160.14,13.59296863]
[1749691686414,26.0,160.16,160.13,0.14216157]
[1749691686609,26.0,160.15,160.13,13.7351302]
[1749691687434,26.0,160.15,160.12,5.56]
[1749691687612,26.0,160.15,160.12,19.15296863]
[1749691689110,26.0,160.15,160.12,5.56]
[1749691689612,26.0,160.17,160.12,19.15296863]
[1749691689938,26.0,160.13,160.12,19.15296863]
[1749691690230,26.0,160.13,160.12,5.56]
[1749691690745,39.59296863,160.13,160.12,5.56]
[1749691690904,13.59296863,160.13,160.12,5.56]
[1749691691103,39.59296863,160.14,160.12,5.56]
[1749691691530,26.0,160.14,160.12,5.56]
[1749691691929,26.0,160.14,160.12,19.15296863]
[1749691692135,26.0,160.14,160.13,13.59296863]
[1749691692509,26.0,160.14,160.12,19.15296863]
[1749691692712,26.0,160.14,160.12,5.56]
[1749691693515,26.0,160.14,160.13,13.59296863]
[1749691693742,26.0,160.14,160.13,13.7351302]
[1749691693924,26.0,160.14,160.13,0.14216157]
[1749691694236,26.0,160.14,160.13,13.7351302]
[1749691694435,26.0,160.14,160.13,13.59296863]
[1749691694645,26.0,160.14,160.12,19.15296863]
[1749691695016,26.0,160.14,160.13,13.59296863]
[1749691696050,26.0,160.14,160.12,5.56]
[1749691696220,26.0,160.14,160.12,19.15296863]
[1749691696416,26.0,160.14,160.12,5.56]
[1749691696838,26.0,160.14,160.12,19.15296863]
[1749691697239,26.0,160.14,160.13,13.59296863]
[1749691697414,26.0,160.16,160.13,13.59296863]
[1749691697617,26.0,160.16,160.13,0.14216157]
[1749691697846,26.0,160.15,160.14,13.59296863]
[1749691698217,26.0,160.15,160.14,13.7351302]
[1749691698846,26.0,160.19,160.15,0.14216157]
[1749691699037,26.0,160.2,160.18,13.59296863]
[1749691699243,26.0,160.2,160.17,13.59296863]
[1749691699428,26.0,160.18,160.15,0.28432314]
[1749691699626,26.0,160.18,160.16,13.59296863]
[1749691699827,26.0,160.18,160.15,13.7351302]
[1749691700023,13.59296863,160.2,160.16,13.59296863]
[1749691700238,39.59296863,160.21,160.16,13.59296863]
[1749691701024,26.0,160.21,160.17,13.59296863]
[1749691702851,13.59296863,160.21,160.17,13.59296863]
[1749691703047,39.59296863,160.22,160.17,13.59296863]
[1749691704767,13.59296863,160.21,160.17,13.59296863]
[1749691705256,26.0,160.18,160.17,13.59296863]
[1749691705938,13.59296863,160.21,160.17,13.59296863]
[1749691705939,26.0,160.21,160.17,13.59296863]
[1749691707449,39.59296863,160.21,160.14,0.14216157]
[1749691707642,39.59296863,160.21,160.16,13.59296863]
[1749691707837,26.0,160.17,160.16,13.59296863]
[1749691708534,13.59296863,160.21,160.16,13.59296863]
[1749691708733,13.59296863,160.21,160.17,13.59296863]
[1749691708963,26.0,160.19,160.17,13.59296863]
[1749691709456,26.0,160.18,160.17,13.59296863]
[1749691709627,26.0,160.18,160.16,13.59296863]
[1749691710134,26.0,160.22,160.16,13.59296863]
[1749691710351,26.0,160.18,160.17,13.59296863]
[1749691710832,26.0,160.2,160.17,14.01945334]
[1749691711032,13.59296863,160.27,160.2,0.42648471]
[1749691711245,1.5673,160.29,160.23,13.59296863]
[1749691711246,13.59296863,160.28,160.23,13.59296863]
[1749691711447,26.0,160.25,160.23,13.59296863]
[1749691711641,13.59296863,160.28,160.23,13.59296863]
[1749691711850,26.0,160.25,160.23,13.59296863]
[1749691712033,1.5673,160.29,160.22,0.42648471]
[1749691712246,13.59296863,160.32,160.27,13.59296863]
[1749691712438,26.0,160.29,160.27,13.59296863]
[1749691712640,13.59296863,160.32,160.23,5.11802597]
[1749691712839,15.23296863,160.33,160.28,13.59296863]
[1749691713074,1.64,160.33,160.29,13.59296863]
[1749691713366,26.0,160.3,160.28,13.59296863]
[1749691713867,6.6528,160.35,160.25,0.28432314]
[1749691713868,6.6528,160.35,160.26,0.14216157]
[1749691714048,26.0,160.32,160.29,13.59296863]
[1749691714368,20.24576863,160.35,160.3,13.59296863]
[1749691714556,26.0,160.32,160.3,13.59296863]
[1749691715372,20.24576863,160.35,160.26,26.22216157]
[1749691715373,6.6528,160.35,160.31,13.59296863]
[1749691715670,13.59296863,160.36,160.31,13.59296863]
[1749691715975,27.6398,160.37,160.32,13.59296863]
[1749691716141,12.53716822,160.4,160.34,13.59296863]
[1749691716142,13.59296863,160.39,160.34,13.59296863]
[1749691716340,13.59296863,160.38,160.33,13.59296863]
[1749691716540,26.0,160.35,160.33,13.59296863]
[1749691716768,26.0,160.35,160.34,13.59296863]
[1749691717777,13.59296863,160.39,160.34,13.59296863]
[1749691717945,13.59296863,160.4,160.35,13.59296863]
[1749691718143,26.0,160.37,160.35,13.59296863]
[1749691718678,26.0,160.36,160.34,13.59296863]
[1749691719254,1.5408,160.41,160.32,0.14216157]
[1749691719255,39.59296863,160.38,160.32,0.14216157]
[1749691719458,39.59296863,160.36,160.31,45.47296863]
[1749691720477,13.59296863,160.35,160.31,31.88]
[1749691720690,26.0,160.32,160.31,5.82]
[1749691720986,39.59296863,160.32,160.31,5.82]
[1749691722047,53.18593726,160.32,160.31,5.82]
[1749691722299,53.18593726,160.32,160.24,0.14216157]
[1749691722476,13.59296863,160.27,160.23,5.82]
[1749691723853,26.0,160.24,160.23,5.82]
[1749691725782,36.95968863,160.42,160.24,0.14216157]
[1749691725783,39.59296863,160.29,160.24,0.14216157]
[1749691725970,39.59296863,160.29,160.24,13.7351302]
[1749691726480,26.0,160.25,160.24,13.59296863]
[1749691726675,26.0,160.25,160.23,19.41296863]
[1749691726867,26.0,160.25,160.24,13.59296863]
[1749691727178,13.59296863,160.27,160.23,5.82]
[1749691727578,26.0,160.28,160.23,5.82]
[1749691727770,39.59296863,160.28,160.23,19.41296863]
[1749691728687,13.59296863,160.26,160.23,5.82]
[1749691731793,13.59296863,160.24,160.23,5.82]
[1749691732379,13.59296863,160.25,160.23,5.82]
[1749691733892,26.0,160.26,160.23,5.82]
[1749691734063,39.59296863,160.26,160.23,5.82]
[1749691736292,13.59296863,160.25,160.23,5.82]
[1749691736871,13.59296863,160.24,160.23,5.82]
[1749691737578,39.59296863,160.24,160.23,5.82]
[1749691742706,26.0,160.24,160.23,5.82]
[1749691743288,26.0,160.25,160.23,5.82]
[1749691743994,13.59296863,160.27,160.23,5.82]
[1749691744298,26.0,160.26,160.23,5.82]
[1749691746592,13.59296863,160.24,160.23,5.82]
[1749691749410,26.0,160.26,160.23,5.82]
[1749691751202,13.59296863,160.32,160.27,13.59296863]
[1749691751500,39.59296863,160.3,160.26,13.59296863]
[1749691752001,26.0,160.3,160.26,13.59296863]
[1749691752787,13.59296863,160.33,160.28,13.59296863]
[1749691752988,1.5873,160.35,160.29,13.59296863]
[1749691753194,39.59296863,160.34,160.29,13.59296863]
[1749691754082,13.59296863,160.33,160.26,0.14216157]
[1749691754284,13.59296863,160.33,160.28,13.59296863]
[1749691754901,13.59296863,160.32,160.28,13.59296863]
[1749691755109,13.59296863,160.33,160.28,13.59296863]
[1749691755483,26.0,160.34,160.28,13.59296863]
[1749691755682,13.59296863,160.33,160.28,13.59296863]
[1749691756706,26.0,160.34,160.29,13.59296863]
[1749691756893,13.59296863,160.33,160.28,13.59296863]
[1749691757097,13.59296863,160.31,160.26,13.7351302]
[1749691757393,13.59296863,160.3,160.26,13.7351302]
[1749691757805,13.59296863,160.31,160.26,13.7351302]
[1749691758011,13.59296863,160.31,160.27,13.59296863]
[1749691758805,13.59296863,160.31,160.25,0.14216157]
[1749691758999,13.59296863,160.31,160.27,13.59296863]
[1749691760429,13.59296863,160.32,160.27,13.59296863]
[1749691760707,13.59296863,160.32,160.28,13.59296863]